[Event "WTCC-65 2018"]
[Site "Radebeul"]
[Date "2018.07.07"]
[Round "1"]
[White "Stebbings, Anthony"]
[Black "Borwell, Alan Peter"]
[Result "1-0"]
[ECO "B33"]
[WhiteElo "2257"]
[BlackElo "1934"]
[Annotator "NA"]
[PlyCount "57"]
[EventDate "2018.07.07"]
[EventType "team-tourn"]
[EventCountry "GER"]
[SourceTitle "playchess.com"]
[Source "ChessBase"]
[SourceQuality "1"]
[TimeControl "40/5400+30:1800+30"]

1. e4 {[%emt 0:00:00]} c5 {[%emt 0:00:00]} 2. Nf3 {[%emt 0:00:00]} Nc6 {[%emt 0:00:28]} 3. d4 {[%emt 0:00:00]} cxd4 {[%emt 0:00:21]} 4. Nxd4 {[%emt 0:00:00]} Nf6 {[%emt 0:00:10]} 5. Nc3 {[%emt 0:00:00]} e5 {[%emt 0:00:07]} 6. Ndb5 {[%emt 0:00:01]} d6 {[%emt 0:00:10]} 7. Bg5 {[%emt 0:00:18]} a6 {[%emt 0:00:10]} 8. Na3 {[%emt 0:00:12]} b5 {[%emt 0:00:35]} 9. Nd5 {[%emt 0:00:11]} Be7 {[%emt 0:00:13]} 10. Bxf6 {[%emt 0:00:10]} Bxf6 {[%emt 0:00:12]} 11. c3 {[%emt 0:00:09]} Bg5 {[%emt 0:00:26]} 12. Nc2 {[%emt 0:00:18]} O-O {[%emt 0:00:49]} 13. a4 {[%emt 0:00:15]} bxa4 {[%emt 0:00:21]} 14. Rxa4 {[%emt 0:00:08]} a5 {[%emt 0:00:17]} 15. Bc4 {[%emt 0:00:22]} Kh8 {[%emt 0:00:29]} 16. Nce3 {[%emt 0:13:16]} f5 {[%emt 0:09:12]} 17. Nxf5 {[%emt 0:04:06]} Bxf5 {[%emt 0:12:12]} 18. exf5 {[%emt 0:00:05]} Rb8 {[%emt 0:08:03]} 19. b3 {[%emt 0:11:56]} e4 {[%emt 0:04:58]} 20. O-O {[%emt 0:12:11]} Rxf5 {[%emt 0:14:42]} 21. Re1 {[%emt 0:00:14]} Qf8 {[%emt 0:03:27]} 22. Ra2 {[%emt 0:01:47]} Re8 {[%emt 0:02:13]} 23. Bb5 {[%emt 0:02:26]} Ree5 {[%emt 0:10:07]} 24. Bxc6 {[%emt 0:01:06]} Qc8 {[%emt 0:00:12]} 25. Nb4 {[%emt 0:20:10]} e3 {[%emt 0:19:12]} 26. fxe3 {[%emt 0:02:59]} Bxe3+ {[%emt 0:01:08]} 27. Kh1 {[%emt 0:00:11]} Bc5 {[%emt 0:05:33]} 28. Rxe5 {[%emt 0:07:26]} dxe5 {[%emt 0:03:30]} 29. Rxa5 {[%emt 0:02:39]} 1-0

[Event "WTCC-65 2018"]
[Site "Radebeul"]
[Date "2018.07.07"]
[Round "1"]
[White "Kolbak, Jens"]
[Black "Sveshnikov, Evgeny"]
[Result "0-1"]
[ECO "B30"]
[WhiteElo "2191"]
[BlackElo "2464"]
[Annotator "ChessBase"]
[PlyCount "36"]
[EventDate "2018.07.07"]
[EventType "team-tourn"]
[EventCountry "GER"]
[SourceTitle "playchess.com"]
[Source "ChessBase"]
[SourceQuality "1"]
[TimeControl "40/5400+30:1800+30"]

1. e4 {[%emt 0:00:00]} c5 {[%emt 0:00:00]} 2. Nf3 {[%emt 0:00:00]} Nc6 {[%emt 0:00:00]} 3. Bb5 {[%emt 0:00:16]} e6 {[%emt 0:00:00]} 4. Bxc6 {[%emt 0:00:33]} bxc6 {[%emt 0:00:00]} 5. O-O {[%emt 0:00:38]} Ne7 {[%emt 0:00:09]} 6. d3 {[%emt 0:01:44]} Ng6 {[%emt 0:00:09]} 7. e5 {[%emt 0:03:04]} f6 {[%emt 0:00:59]} 8. Re1 {[%emt 0:03:40]} Be7 {[%emt 0:01:25]} 9. Nc3 {[%emt 0:05:07]} fxe5 {[%emt 0:04:53]} 10. Nxe5 {[%emt 0:00:10]} Nxe5 {[%emt 0:00:09]} 11. Rxe5 {[%emt 0:00:05]} O-O {[%emt 0:00:21]} 12. Qe2 {[%emt 0:07:25]} d6 {[%emt 0:12:16]} 13. Rh5 {[%emt 0:01:24]} d5 {[%emt 0:04:06]} 14. Bd2 {[%emt 0:04:23]} Bd6 {[%emt 0:02:02]} 15. Na4 {[%emt 0:06:50]} e5 {[%emt 0:04:31]} 16. c4 {[%emt 0:00:28]} Qf6 {[%emt 0:01:49]} 17. Rc1 {[%emt 0:02:37]} Bg4 18. Qd1 Qd8 0-1

[Event "WTCC-65 2018"]
[Site "Radebeul"]
[Date "2018.07.07"]
[Round "1"]
[White "Romcovici, Victor"]
[Black "Boidman, Yuri"]
[Result "0-1"]
[ECO "D04"]
[WhiteElo "2114"]
[BlackElo "2358"]
[Annotator "NA"]
[PlyCount "72"]
[EventDate "2018.07.07"]
[EventType "team-tourn"]
[EventCountry "GER"]
[SourceTitle "playchess.com"]
[Source "ChessBase"]
[SourceQuality "1"]
[TimeControl "40/5400+30:1800+30"]

1. d4 {[%emt 0:00:00]} d5 {[%emt 0:00:00]} 2. Nf3 {[%emt 0:00:06]} Nf6 {[%emt 0:00:00]} 3. e3 {[%emt 0:00:08]} c5 {[%emt 0:00:05]} 4. b3 {[%emt 0:00:19]} cxd4 {[%emt 0:00:31]} 5. exd4 {[%emt 0:00:07]} Nc6 {[%emt 0:00:18]} 6. a3 {[%emt 0:00:52]} Bg4 {[%emt 0:00:49]} 7. Bb2 {[%emt 0:01:00]} e6 {[%emt 0:00:33]} 8. Nbd2 {[%emt 0:02:46]} Be7 {[%emt 0:01:59]} 9. h3 {[%emt 0:00:34]} Bf5 {[%emt 0:01:36]} 10. Nh4 {[%emt 0:08:05]} Be4 {[%emt 0:00:59]} 11. Be2 {[%emt 0:07:59]} h6 {[%emt 0:02:42]} 12. Nxe4 {[%emt 0:06:10]} dxe4 {[%emt 0:00:43]} 13. g3 {[%emt 0:00:15]} e3 {[%emt 0:02:20]} 14. Bf3 {[%emt 0:03:05]} exf2+ {[%emt 0:03:41]} 15. Kxf2 {[%emt 0:00:23]} Qb6 {[%emt 0:01:10]} 16. Re1 {[%emt 0:08:33]} Rd8 {[%emt 0:06:35]} 17. Bxc6+ {[%emt 0:04:41]} Qxc6 {[%emt 0:00:19]} 18. Qe2 {[%emt 0:10:30]} O-O {[%emt 0:03:27]} 19. c4 {[%emt 0:04:26]} b5 {[%emt 0:06:21]} 20. Nf3 {[%emt 0:04:45]} bxc4 {[%emt 0:01:42]} 21. bxc4 {[%emt 0:00:09]} Nd7 {[%emt 0:03:31]} 22. Kg2 {[%emt 0:01:22]} Nb6 {[%emt 0:03:40]} 23. d5 {[%emt 0:20:36]} Qxc4 {[%emt 0:09:04]} 24. dxe6 {[%emt 0:00:12]} fxe6 {[%emt 0:07:38]} 25. Qxe6+ {[%emt 0:01:23]} Rf7 {[%emt 0:00:24]} 26. a4 {[%emt 0:09:18]} Rd3 {[%emt 0:02:17]} 27. Ng1 {[%emt 0:03:32]} Rd2+ {[%emt 0:01:23]} 28. Kh1 {[%emt 0:01:29]} Qxe6 {[%emt 0:01:08]} 29. Rxe6 {[%emt 0:00:03]} Rxb2 {[%emt 0:00:12]} 30. Ne2 {[%emt 0:00:31]} Bc5 {[%emt 0:01:22]} 31. a5 Nd5 {[%emt 0:01:47]} 32. Re5 {[%emt 0:01:32]} Rd2 {[%emt 0:01:10]} 33. Rc1 {[%emt 0:00:31]} Bd6 34. Re6 {[%emt 0:00:57]} Bc7 {[%emt 0:05:42]} 35. Rcc6 {[%emt 0:00:00]} Bxa5 {[%emt 0:00:00]} 36. Rc8+ {[%emt 0:00:00]} Kh7 {[%emt 0:00:00]} 0-1

[Event "WTCC-65 2018"]
[Site "Radebeul"]
[Date "2018.07.07"]
[Round "1"]
[White "White, Alastair F"]
[Black "Povah, Nigel Edward"]
[Result "1/2-1/2"]
[ECO "B20"]
[WhiteElo "2081"]
[BlackElo "2245"]
[Annotator "NA"]
[PlyCount "81"]
[EventDate "2018.07.07"]
[EventType "team-tourn"]
[EventCountry "GER"]
[SourceTitle "playchess.com"]
[Source "ChessBase"]
[SourceQuality "1"]
[TimeControl "40/5400+30:1800+30"]

1. e4 c5 2. b3 Nf6 3. d3 {[%emt 0:02:10]} Nc6 {[%emt 0:05:19]} 4. Bb2 {[%emt 0:02:43]} Qc7 {[%emt 0:01:15]} 5. g4 {[%emt 0:03:22]} Qf4 {[%emt 0:10:49]} 6. Be2 {[%emt 0:08:44]} d5 {[%emt 0:06:59]} 7. exd5 {[%emt 0:19:33]} Nxd5 {[%emt 0:02:11]} 8. Qd2 {[%emt 0:08:16]} Be6 {[%emt 0:15:02]} 9. Nc3 {[%emt 0:04:39]} Nd4 {[%emt 0:03:51]} 10. Nxd5 {[%emt 0:07:28]} Qxd2+ {[%emt 0:00:25]} 11. Kxd2 {[%emt 0:00:06]} Bxd5 {[%emt 0:00:10]} 12. f3 {[%emt 0:01:37]} h5 {[%emt 0:05:42]} 13. g5 {[%emt 0:02:24]} h4 {[%emt 0:01:39]} 14. c3 {[%emt 0:17:52]} Nxe2 {[%emt 0:10:43]} 15. Kxe2 {[%emt 0:00:31]} Rh5 {[%emt 0:00:50]} 16. Bc1 {[%emt 0:01:01]} h3 {[%emt 0:05:25]} 17. Kf2 {[%emt 0:01:11]} g6 {[%emt 0:07:00]} 18. Ne2 {[%emt 0:03:57]} Rd8 {[%emt 0:06:45]} 19. Be3 {[%emt 0:03:25]} Bg7 {[%emt 0:04:14]} 20. Rhg1 {[%emt 0:02:09]} Bc6 {[%emt 0:00:58]} 21. Rad1 {[%emt 0:03:11]} b6 {[%emt 0:00:11]} 22. d4 {[%emt 0:01:11]} cxd4 {[%emt 0:03:57]} 23. Nxd4 {[%emt 0:00:41]} Bd7 {[%emt 0:00:32]} 24. Ne2 {[%emt 0:00:54]} Rh8 {[%emt 0:01:58]} 25. c4 {[%emt 0:02:21]} Rc8 {[%emt 0:01:09]} 26. Rd2 {[%emt 0:00:30]} e5 {[%emt 0:01:00]} 27. Nc3 {[%emt 0:01:05]} Bf5 {[%emt 0:03:12]} 28. Ne4 {[%emt 0:01:08]} Ke7 {[%emt 0:01:09]} 29. Rgd1 {[%emt 0:00:32]} Rcd8 {[%emt 0:00:35]} 30. c5 {[%emt 0:00:35]} Bxe4 {[%emt 0:00:27]} 31. Rxd8 {[%emt 0:00:27]} Rxd8 {[%emt 0:00:07]} 32. Rxd8 {[%emt 0:00:08]} Kxd8 {[%emt 0:00:03]} 33. fxe4 {[%emt 0:00:05]} Kc7 {[%emt 0:00:29]} 34. cxb6+ {[%emt 0:00:21]} axb6 {[%emt 0:00:04]} 35. Kg3 {[%emt 0:00:10]} Bf8 {[%emt 0:00:49]} 36. Kxh3 {[%emt 0:00:10]} Kc6 {[%emt 0:00:37]} 37. Kg4 {[%emt 0:00:41]} b5 {[%emt 0:00:45]} 38. Kf3 {[%emt 0:00:59]} b4 {[%emt 0:00:24]} 39. Ke2 {[%emt 0:00:26]} Kb5 {[%emt 0:00:29]} 40. Kd3 {[%emt 0:00:11]} Be7 {[%emt 0:00:20]} 41. h3 {[%emt 0:32:49]} 1/2-1/2

[Event "WTCC-65 2018"]
[Site "Radebeul"]
[Date "2018.07.07"]
[Round "1"]
[White "Eskandary, Jahja"]
[Black "Seret, Jean Luc"]
[Result "1/2-1/2"]
[ECO "B00"]
[WhiteElo "2047"]
[BlackElo "2353"]
[Annotator "NA"]
[PlyCount "58"]
[EventDate "2018.07.07"]
[EventType "team-tourn"]
[EventCountry "GER"]
[SourceTitle "playchess.com"]
[Source "ChessBase"]
[SourceQuality "1"]
[TimeControl "40/5400+30:1800+30"]

1. e4 {[%emt 0:52:57]} b6 {[%emt 0:52:36]} 2. Nc3 {[%emt 0:00:30]} Bb7 {[%emt 0:00:30]} 3. d4 {[%emt 0:00:30]} e6 {[%emt 0:00:30]} 4. Bf4 {[%emt 0:00:30]} Bb4 {[%emt 0:00:30]} 5. f3 {[%emt 0:00:30]} d5 {[%emt 0:00:30]} 6. e5 {[%emt 0:00:30]} Ne7 {[%emt 0:00:30]} 7. a3 {[%emt 0:00:30]} Bxc3+ {[%emt 0:00:30]} 8. bxc3 {[%emt 0:00:30]} Qd7 {[%emt 0:00:30]} 9. Rb1 {[%emt 0:00:30]} Ba6 {[%emt 0:00:30]} 10. Bxa6 {[%emt 0:00:30]} Nxa6 {[%emt 0:00:30]} 11. Qd3 {[%emt 0:00:30]} Nb8 {[%emt 0:00:30]} 12. Ne2 {[%emt 0:00:30]} Nbc6 {[%emt 0:00:30]} 13. O-O {[%emt 0:00:30]} f6 {[%emt 0:00:30]} 14. exf6 {[%emt 0:00:30]} gxf6 {[%emt 0:00:30]} 15. Qa6 {[%emt 0:00:30]} O-O {[%emt 0:00:30]} 16. Ng3 {[%emt 0:00:30]} Rf7 {[%emt 0:00:30]} 17. Rfe1 {[%emt 0:00:30]} Re8 {[%emt 0:00:30]} 18. Re2 {[%emt 0:00:30]} Ng6 {[%emt 0:00:30]} 19. Bd2 {[%emt 0:00:30]} e5 {[%emt 0:00:30]} 20. Rbe1 {[%emt 0:00:30]} Ree7 {[%emt 0:00:30]} 21. Qd3 {[%emt 0:00:30]} exd4 {[%emt 0:00:30]} 22. Rxe7 {[%emt 0:00:30]} Rxe7 {[%emt 0:00:30]} 23. Rxe7 {[%emt 0:00:30]} Ncxe7 {[%emt 0:00:30]} 24. cxd4 {[%emt 0:00:30]} a5 {[%emt 0:00:30]} 25. Nh5 {[%emt 0:00:30]} Kf7 {[%emt 0:00:30]} 26. g4 {[%emt 0:00:30]} Qc6 {[%emt 0:00:30]} 27. c3 {[%emt 0:21:43]} Qa4 {[%emt 0:05:55]} 28. Bc1 {[%emt 0:00:25]} Qb3 {[%emt 0:02:41]} 29. Kf2 {[%emt 0:04:06]} Qa2+ 1/2-1/2

[Event "WTCC-65 2018"]
[Site "Radebeul"]
[Date "2018.07.07"]
[Round "1"]
[White "Zoephel, Heinz"]
[Black "Bernard, Christophe"]
[Result "1/2-1/2"]
[ECO "B59"]
[WhiteElo "1979"]
[BlackElo "2253"]
[Annotator "NA"]
[PlyCount "116"]
[EventDate "2018.07.07"]
[EventType "team-tourn"]
[EventCountry "GER"]
[SourceTitle "playchess.com"]
[Source "ChessBase"]
[SourceQuality "1"]
[TimeControl "40/5400+30:1800+30"]

1. e4 {[%emt 0:00:00]} c5 {[%emt 0:00:00]} 2. Nf3 {[%emt 0:00:23]} d6 {[%emt 0:00:02]} 3. d4 {[%emt 0:00:19]} cxd4 {[%emt 0:00:07]} 4. Nxd4 {[%emt 0:00:10]} Nf6 {[%emt 0:00:09]} 5. Nc3 {[%emt 0:00:17]} Nc6 {[%emt 0:00:51]} 6. Be2 {[%emt 0:01:24]} e5 {[%emt 0:00:43]} 7. Nb3 {[%emt 0:03:39]} Be7 {[%emt 0:00:30]} 8. f4 {[%emt 0:00:55]} O-O {[%emt 0:00:26]} 9. Bf3 {[%emt 0:01:27]} a5 {[%emt 0:00:38]} 10. a4 {[%emt 0:00:26]} Be6 {[%emt 0:00:48]} 11. Nd5 {[%emt 0:02:38]} Bxd5 {[%emt 0:06:04]} 12. exd5 {[%emt 0:00:13]} Nb4 {[%emt 0:06:43]} 13. c3 {[%emt 0:07:10]} e4 {[%emt 0:12:24]} 14. cxb4 {[%emt 0:06:25]} exf3 {[%emt 0:00:10]} 15. Qxf3 {[%emt 0:00:31]} axb4 {[%emt 0:01:04]} 16. Be3 {[%emt 0:04:30]} Qd7 {[%emt 0:00:39]} 17. a5 {[%emt 0:04:48]} Qb5 {[%emt 0:00:29]} 18. Rd1 {[%emt 0:02:04]} Qc4 {[%emt 0:03:10]} 19. Nd4 {[%emt 0:11:25]} Rfe8 {[%emt 0:02:26]} 20. Kf2 {[%emt 0:09:39]} Ne4+ {[%emt 0:06:45]} 21. Kg1 {[%emt 0:00:08]} Bf6 {[%emt 0:00:09]} 22. g4 {[%emt 0:02:39]} Rxa5 {[%emt 0:03:41]} 23. Kg2 {[%emt 0:08:42]} Rxd5 {[%emt 0:07:43]} 24. b3 {[%emt 0:05:30]} Qa6 {[%emt 0:02:59]} 25. Ra1 {[%emt 0:00:52]} Ra5 {[%emt 0:00:48]} 26. Rxa5 {[%emt 0:02:50]} Qxa5 {[%emt 0:00:02]} 27. Rc1 {[%emt 0:00:10]} h6 {[%emt 0:08:09]} 28. Rc2 {[%emt 0:04:37]} Qd5 {[%emt 0:03:50]} 29. Rc4 {[%emt 0:03:27]} Nc3 {[%emt 0:02:14]} 30. Bf2 {[%emt 0:02:17]} Re4 {[%emt 0:03:25]} 31. Rc8+ {[%emt 0:03:27]} Kh7 {[%emt 0:00:01]} 32. Nf5 {[%emt 0:02:39]} Re2 {[%emt 0:04:51]} 33. Qxd5 {[%emt 0:02:57]} Nxd5 {[%emt 0:00:02]} 34. Kf3 {[%emt 0:00:11]} Rb2 {[%emt 0:00:08]} 35. Nxd6 {[%emt 0:00:42]} Nxf4 {[%emt 0:00:43]} 36. Nxf7 {[%emt 0:00:22]} Ne6 {[%emt 0:01:06]} 37. h4 {[%emt 0:01:52]} Rxb3+ {[%emt 0:01:01]} 38. Ke4 {[%emt 0:00:28]} Rc3 {[%emt 0:01:25]} 39. Rb8 {[%emt 0:00:51]} Rc7 {[%emt 0:01:01]} 40. Rh8+ {[%emt 0:01:59]} Kg6 {[%emt 0:00:01]} 41. Ne5+ {[%emt 0:30:40]} Bxe5 {[%emt 0:30:12]} 42. Kxe5 {[%emt 0:00:18]} Kf7 {[%emt 0:03:07]} 43. Ra8 {[%emt 0:01:34]} b3 {[%emt 0:00:18]} 44. Ra4 {[%emt 0:00:27]} Rc2 {[%emt 0:00:36]} 45. Rb4 {[%emt 0:02:18]} Re2+ {[%emt 0:00:19]} 46. Kd5 {[%emt 0:02:04]} Rxf2 {[%emt 0:00:23]} 47. Rxb7+ {[%emt 0:00:11]} Kf6 {[%emt 0:00:06]} 48. Rxb3 {[%emt 0:00:00]} Rf4 {[%emt 0:00:00]} 49. g5+ {[%emt 0:00:00]} hxg5 {[%emt 0:00:00]} 50. hxg5+ {[%emt 0:00:00]} Nxg5 {[%emt 0:00:00]} 51. Rb6+ {[%emt 0:00:00]} Kf5 {[%emt 0:00:00]} 52. Rb8 {[%emt 0:00:00]} Ne4 {[%emt 0:00:00]} 53. Rb7 {[%emt 0:00:00]} Nf6+ {[%emt 0:00:00]} 54. Kd6 {[%emt 0:00:00]} Rd4+ {[%emt 0:00:00]} 55. Kc5 {[%emt 0:00:00]} Rd7 {[%emt 0:00:00]} 56. Rb1 {[%emt 0:00:00]} g5 {[%emt 0:00:00]} 57. Rf1+ {[%emt 0:00:00]} Ke5 {[%emt 0:00:00]} 58. Kc4 {[%emt 0:00:00]} g4 {[%emt 0:00:00]} 1/2-1/2

[Event "WTCC-65 2018"]
[Site "Radebeul"]
[Date "2018.07.07"]
[Round "1"]
[White "Jorgensen, Arne Bjorn"]
[Black "Zhelnin, Vladimir V"]
[Result "0-1"]
[ECO "E91"]
[WhiteElo "1974"]
[BlackElo "2453"]
[Annotator "ChessBase"]
[PlyCount "90"]
[EventDate "2018.07.07"]
[EventType "team-tourn"]
[EventCountry "GER"]
[SourceTitle "playchess.com"]
[Source "ChessBase"]
[SourceQuality "1"]
[TimeControl "40/5400+30:1800+30"]

1. d4 {[%emt 0:00:00]} Nf6 {[%emt 0:00:01]} 2. Nf3 {[%emt 0:00:00]} g6 {[%emt 0:01:13]} 3. c4 {[%emt 0:00:00]} Bg7 {[%emt 0:01:03]} 4. Nc3 {[%emt 0:00:00]} O-O {[%emt 0:00:25]} 5. e4 {[%emt 0:00:22]} d6 {[%emt 0:00:24]} 6. Be2 {[%emt 0:00:22]} Nbd7 {[%emt 0:01:07]} 7. O-O {[%emt 0:00:59]} e5 {[%emt 0:00:05]} 8. dxe5 {[%emt 0:00:39]} dxe5 {[%emt 0:00:32]} 9. Bg5 {[%emt 0:02:42]} h6 {[%emt 0:03:19]} 10. Bxf6 {[%emt 0:00:39]} Qxf6 {[%emt 0:02:25]} 11. b4 {[%emt 0:04:29]} c6 {[%emt 0:08:47]} 12. Qd2 {[%emt 0:07:39]} Re8 {[%emt 0:04:06]} 13. c5 {[%emt 0:07:57]} Nf8 {[%emt 0:00:51]} 14. Bc4 {[%emt 0:03:28]} Ne6 {[%emt 0:05:36]} 15. Bxe6 {[%emt 0:04:36]} Bxe6 {[%emt 0:00:12]} 16. Rfd1 {[%emt 0:01:21]} a5 {[%emt 0:10:07]} 17. a3 {[%emt 0:03:40]} Red8 {[%emt 0:05:18]} 18. Qe2 {[%emt 0:03:18]} axb4 {[%emt 0:02:00]} 19. axb4 {[%emt 0:01:05]} Qe7 {[%emt 0:01:07]} 20. Rxd8+ {[%emt 0:11:44]} Rxd8 {[%emt 0:00:18]} 21. Rb1 {[%emt 0:04:22]} Qc7 {[%emt 0:03:04]} 22. h3 {[%emt 0:04:30]} Ra8 {[%emt 0:02:09]} 23. Qb2 {[%emt 0:05:55]} Bc4 {[%emt 0:11:18]} 24. Nd2 {[%emt 0:02:08]} Bd3 {[%emt 0:02:14]} 25. Rd1 {[%emt 0:02:38]} Rd8 {[%emt 0:07:03]} 26. Qb3 {[%emt 0:02:13]} Ba6 {[%emt 0:09:56]} 27. Nf3 {[%emt 0:07:07]} Bf6 {[%emt 0:09:02]} 28. Rxd8+ {[%emt 0:02:18]} Qxd8 {[%emt 0:00:12]} 29. Qd1 {[%emt 0:01:17]} Qxd1+ {[%emt 0:01:14]} 30. Nxd1 {[%emt 0:00:02]} Bd3 {[%emt 0:01:20]} 31. Nc3 {[%emt 0:01:15]} Kf8 {[%emt 0:00:20]} 32. Ne1 {[%emt 0:01:28]} Ba6 {[%emt 0:00:19]} 33. Nc2 {[%emt 0:01:58]} Ke7 {[%emt 0:00:57]} 34. g3 {[%emt 0:00:58]} Ke6 {[%emt 0:00:18]} 35. Kg2 {[%emt 0:00:29]} h5 {[%emt 0:02:43]} 36. h4 {[%emt 0:01:23]} Bg7 {[%emt 0:00:34]} 37. Kf3 {[%emt 0:01:58]} f5 {[%emt 0:02:04]} 38. Na3 {[%emt 0:05:52]} Bh6 {[%emt 0:01:29]} 39. b5 {[%emt 0:01:19]} cxb5 {[%emt 0:00:18]} 40. Naxb5 {[%emt 0:00:34]} Kd7 {[%emt 0:01:35]} 41. Nd6 {[%emt 0:32:39]} Bd2 {[%emt 0:30:53]} 42. Nd5 {[%emt 0:00:53]} Kc6 {[%emt 0:01:46]} 43. Nf7 {[%emt 0:01:33]} Kxc5 {[%emt 0:00:23]} 44. Nxe5 {[%emt 0:00:45]} Kd4 {[%emt 0:00:46]} 45. exf5 {[%emt 0:00:00]} gxf5 {[%emt 0:00:00]} 0-1

[Event "WTCC-65 2018"]
[Site "Radebeul"]
[Date "2018.07.07"]
[Round "1"]
[White "Seibt, Manfred"]
[Black "Buchal, Stephan"]
[Result "0-1"]
[ECO "E81"]
[WhiteElo "1967"]
[BlackElo "2329"]
[Annotator "NA"]
[PlyCount "90"]
[EventDate "2018.07.07"]
[EventType "team-tourn"]
[EventCountry "GER"]
[SourceTitle "playchess.com"]
[Source "ChessBase"]
[SourceQuality "1"]
[TimeControl "40/5400+30:1800+30"]

1. d4 {[%emt 0:00:00]} g6 {[%emt 0:00:00]} 2. c4 {[%emt 0:00:00]} Bg7 {[%emt 0:00:00]} 3. Nc3 {[%emt 0:00:15]} d6 {[%emt 0:00:00]} 4. e4 {[%emt 0:00:20]} Nf6 {[%emt 0:00:07]} 5. f3 {[%emt 0:00:27]} O-O {[%emt 0:00:28]} 6. Be3 {[%emt 0:00:14]} a6 {[%emt 0:00:41]} 7. Qd2 {[%emt 0:02:45]} Nc6 {[%emt 0:01:28]} 8. Nge2 {[%emt 0:04:12]} Na5 {[%emt 0:01:14]} 9. Nc1 {[%emt 0:08:35]} Nd7 {[%emt 0:02:23]} 10. Be2 {[%emt 0:03:30]} c5 {[%emt 0:05:38]} 11. Nb3 {[%emt 0:02:58]} Nxb3 {[%emt 0:20:06]} 12. axb3 {[%emt 0:01:46]} e6 {[%emt 0:13:40]} 13. d5 {[%emt 0:05:52]} exd5 {[%emt 0:08:35]} 14. Nxd5 {[%emt 0:01:36]} Ne5 {[%emt 0:02:25]} 15. O-O {[%emt 0:01:30]} Nc6 {[%emt 0:03:32]} 16. Rad1 {[%emt 0:12:24]} Be6 {[%emt 0:03:25]} 17. Bg5 {[%emt 0:11:14]} Bd4+ {[%emt 0:03:04]} 18. Kh1 {[%emt 0:01:13]} f6 {[%emt 0:00:29]} 19. Be3 {[%emt 0:01:38]} Bxd5 {[%emt 0:04:57]} 20. exd5 {[%emt 0:04:12]} Bxe3 {[%emt 0:01:16]} 21. Qxe3 {[%emt 0:00:12]} Nd4 {[%emt 0:00:58]} 22. Rd2 {[%emt 0:04:24]} Re8 {[%emt 0:02:22]} 23. Qd3 {[%emt 0:01:12]} Qb6 {[%emt 0:00:59]} 24. Bd1 {[%emt 0:01:27]} Re7 {[%emt 0:00:32]} 25. Qc3 {[%emt 0:02:30]} a5 {[%emt 0:03:26]} 26. Rd3 {[%emt 0:01:15]} Rae8 {[%emt 0:01:59]} 27. Qd2 {[%emt 0:00:53]} Qb4 {[%emt 0:03:33]} 28. Qxb4 {[%emt 0:01:13]} axb4 {[%emt 0:00:02]} 29. Kg1 {[%emt 0:01:54]} Re3 {[%emt 0:04:08]} 30. Rxe3 {[%emt 0:03:30]} Rxe3 {[%emt 0:00:03]} 31. Kf2 {[%emt 0:00:27]} Rd3 {[%emt 0:02:05]} 32. Ke1 {[%emt 0:05:17]} Kf7 {[%emt 0:02:05]} 33. f4 {[%emt 0:04:05]} f5 {[%emt 0:02:07]} 34. Rg1 {[%emt 0:01:06]} Kf6 {[%emt 0:03:22]} 35. Rf1 {[%emt 0:01:03]} h6 {[%emt 0:00:23]} 36. h4 g5 {[%emt 0:02:19]} 37. hxg5+ hxg5 38. fxg5+ {[%emt 0:06:21]} Kxg5 {[%emt 0:00:35]} 39. Rh1 {[%emt 0:00:18]} Rg3 {[%emt 0:02:59]} 40. Kf2 {[%emt 0:01:04]} Rd3 {[%emt 0:00:11]} 41. Ke1 {[%emt 0:31:14]} Nxb3 {[%emt 0:06:28]} 42. Rh5+ {[%emt 0:00:00]} Kg6 {[%emt 0:03:37]} 43. Rh8 {[%emt 0:00:00]} Nd2 {[%emt 0:05:40]} 44. Bc2 {[%emt 0:00:00]} Rd4 {[%emt 0:00:22]} 45. Re8 {[%emt 0:00:00]} Nxc4 {[%emt 0:01:56]} 0-1

[Event "WTCC-65 2018"]
[Site "Radebeul"]
[Date "2018.07.07"]
[Round "1"]
[White "Van Kemenade, Rudy"]
[Black "Karasev, Vladimir I"]
[Result "0-1"]
[ECO "A02"]
[WhiteElo "1948"]
[BlackElo "2337"]
[Annotator "NA"]
[PlyCount "46"]
[EventDate "2018.07.07"]
[EventType "team-tourn"]
[EventCountry "GER"]
[SourceTitle "playchess.com"]
[Source "ChessBase"]
[SourceQuality "1"]
[TimeControl "40/5400+30:1800+30"]

1. f4 {[%emt 0:00:00]} e5 {[%emt 0:00:00]} 2. fxe5 {[%emt 0:00:00]} d6 {[%emt 0:00:00]} 3. exd6 {[%emt 0:00:00]} Bxd6 {[%emt 0:00:00]} 4. Nf3 {[%emt 0:00:00]} g5 {[%emt 0:00:08]} 5. g3 {[%emt 0:00:00]} g4 {[%emt 0:04:07]} 6. Nh4 {[%emt 0:00:27]} Be7 {[%emt 0:00:50]} 7. Ng2 {[%emt 0:00:07]} h5 {[%emt 0:00:08]} 8. d4 {[%emt 0:00:10]} h4 {[%emt 0:00:13]} 9. Bf4 {[%emt 0:00:12]} h3 {[%emt 0:13:11]} 10. Ne3 {[%emt 0:00:47]} Nf6 {[%emt 0:01:53]} 11. Qd3 {[%emt 0:00:58]} Nc6 {[%emt 0:01:49]} 12. c3 {[%emt 0:01:50]} Be6 {[%emt 0:03:07]} 13. Nd2 {[%emt 0:02:16]} Qd7 {[%emt 0:08:45]} 14. b3 {[%emt 0:01:29]} O-O-O {[%emt 0:02:48]} 15. O-O-O {[%emt 0:00:19]} Nh5 {[%emt 0:02:21]} 16. Nec4 {[%emt 0:00:44]} Nxf4 {[%emt 0:00:53]} 17. gxf4 {[%emt 0:00:15]} f5 {[%emt 0:02:52]} 18. Ne5 {[%emt 0:02:57]} Nxe5 {[%emt 0:00:39]} 19. dxe5 {[%emt 0:00:12]} Qc6 {[%emt 0:00:16]} 20. e4 {[%emt 0:00:28]} Rxd3 {[%emt 0:00:08]} 21. Bxd3 {[%emt 0:00:08]} Qxc3+ {[%emt 0:00:04]} 22. Bc2 {[%emt 0:00:11]} Ba3+ {[%emt 0:00:04]} 23. Kb1 {[%emt 0:00:05]} Qb2# 0-1